Workbook

Sheet ST2-Budget
B2: Table 1: Stocker Budget, 200 Head - 2020 | O2: EBB-ST2-20
B3: Wintered to Go to Feedlot, Bought in Fall & Sold in Spring | L3: No. of Head: | M3: 200
H5: Total Number
D6: Weight | H6: of Head | J6: Price or | L6: Total | M6: Value or
D7: Each | F7: Unit | H7: or Units | J7: Cost/Unit | L7: Value | M7: Cost/Head | O7: Your Value
C8: GROSS RETURNS
C9: Steers | D9: 725 | F9: lbs | H9: 198 | J9: 1.55 | L9: =D9*H9*J9 -> 222502.5 | M9: =L9/$M$3 -> 1112.5125
C11: TOTAL GROSS RETURNS | L11: =SUM(L9:L10) -> 222502.5 | M11: =SUM(M9:M10) -> 1112.5125
C13: OPERATING COSTS
C14: Purchased Steers | D14: 425 | F14: lbs | H14: 200 | J14: 1.7 | L14: =D14*H14*J14 -> 144500 | M14: =L14/$M$3 -> 722.5
C15: Alfalfa Hay | F15: ton | H15: 176 | J15: 150 | L15: =H15*J15 -> 26400 | M15: =L15/$M$3 -> 132
C16: Feed Barley | F16: cwt | H16: 1890 | J16: 13 | L16: =H16*J16 -> 24570 | M16: =L16/$M$3 -> 122.85
C17: Yardage | F17: day | H17: 30000 | J17: 0.35 | L17: 10500 | M17: 52.5
C18: Veterinary | F18: head | H18: 200 | J18: =Vet!R12*1.25 -> 5.9375 | L18: =H18*J18 -> 1187.5 | M18: 5.9375
C19: Hired Labor | F19: hour | H19: 20 | J19: 17.5 | L19: =H19*J19 -> 350 | M19: 1.75
C20: Marketing | F20: head | H20: 198 | J20: =M9*0.025 -> 27.8128125 | L20: 5506.936875 | M20: 27.53468438
C21: Miscellaneous | F21: head | H21: 200 | J21: 10 | L21: 2000 | M21: 10
C23: Interest on Operating Capital | F23: $ | H23: =SUM(L14:L22)*0.5 -> 107507.2184 | J23: 0.07 | L23: =H23*J23 -> 7525.505291 | M23: 37.62752645
C24: TOTAL OPERATING COSTS | L24: =SUM(L14:L23) -> 222539.9422 | M24: 1112.699711
C26: NET RETURNS ABOVE OPERATING COSTS | L26: =L11-L24 -> -37.44216563 | M26: =L26/$M$3 -> -0.1872108281

Sheet Monthly Flows
B2: Table 2: Monthly Summary of Returns and Expenses. | P2: EBB-ST2-20
D3: Jan | E3: Feb | F3: Mar | G3: Apr | H3: May | I3: Jun | J3: Jul | K3: Aug | L3: Sep | M3: Oct | N3: Nov | O3: Dec | P3: Value
B5: Production:
C6: Steers | F6: =P6 -> 222502.5 | P6: ='ST2-Budget'!L9 -> 222502.5
B8: Total Receipts | D8: =SUM(D6:D7) -> 0 | E8: 0 | F8: 222502.5 | G8: 0 | H8: 0 | I8: 0 | J8: 0 | K8: 0 | L8: 0 | M8: 0 | N8: 0 | O8: 0 | P8: ='ST2-Budget'!L11 -> 222502.5
B11: Operating Inputs:
C12: Purchased Steers | N12: =P12 -> 144500 | P12: ='ST2-Budget'!L14 -> 144500
C13: Alfalfa Hay | D13: =P13*0.25 -> 6600 | E13: =P13*0.25 -> 6600 | N13: =P13*0.25 -> 6600 | O13: =P13*0.25 -> 6600 | P13: ='ST2-Budget'!L15 -> 26400
C14: Feed Barley | D14: =P14*0.25 -> 6142.5 | E14: =P14*0.25 -> 6142.5 | N14: =P14*0.25 -> 6142.5 | O14: =P14*0.25 -> 6142.5 | P14: ='ST2-Budget'!L16 -> 24570
C15: Yardage | D15: =P15*0.25 -> 2625 | E15: =P15*0.25 -> 2625 | N15: =P15*0.25 -> 2625 | O15: =P15*0.25 -> 2625 | P15: ='ST2-Budget'!L17 -> 10500
C16: Veterinary | P16: ='ST2-Budget'!L18 -> 1187.5
C17: Hired Labor | N17: =P17 -> 350 | P17: ='ST2-Budget'!L19 -> 350
C18: Marketing | F18: =P18 -> 5506.936875 | P18: ='ST2-Budget'!L20 -> 5506.936875
C19: Miscellaneous | D19: =P19*0.2 -> 400 | E19: =P19*0.2 -> 400 | F19: =P19*0.2 -> 400 | N19: =P19*0.2 -> 400 | O19: =P19*0.2 -> 400 | P19: ='ST2-Budget'!L21 -> 2000
C20: Interest on Operating Capital | F20: =P20 -> 7525.505291 | P20: ='ST2-Budget'!L23 -> 7525.505291
B22: Total Costs | D22: =SUM(D12:D19) -> 15767.5 | E22: 15767.5 | F22: 5906.936875 | G22: 0 | H22: 0 | I22: 0 | J22: 0 | K22: 0 | L22: 0 | M22: 0 | N22: 160617.5 | O22: 15767.5 | P22: =SUM(P12:P20) -> 222539.9422
B25: Net Returns | D25: =D8-D22 -> -15767.5 | E25: -15767.5 | F25: 216595.5631 | G25: 0 | H25: 0 | I25: 0 | J25: 0 | K25: 0 | L25: 0 | M25: 0 | N25: -160617.5 | O25: -15767.5 | P25: -37.44216563
B29: Table 3: Monthly Feed Requirements.
B30: Feed | D30: Units | E30: Jan | F30: Feb | G30: Mar | H30: Apr | I30: May | J30: Jun | K30: Jul | L30: Aug | M30: Sep | N30: Oct | O30: Nov | P30: Dec
B32: Alfalfa Hay | D32: ton | E32: 35 | F32: 35 | G32: 35 | O32: 35 | P32: 35
B33: Feed Barley | D33: cwt | E33: 378 | F33: 378 | G33: 378 | O33: 378 | P33: 378

Sheet Vet
A1: Veterinary Expenses
B4: Number of Head | D4: Units | E4: $/Unit | F4: Jan | G4: Feb | H4: Mar | I4: Apr | J4: May | K4: Jun | L4: Jul | M4: Aug | N4: Sep | O4: Oct | P4: Nov | Q4: Dec | R4: Total
A5: Steer Calves | B5: 200
A6: Respiratory Viral | D6: dose | E6: 1.8 | P6: 1 | R6: =SUM(F6:Q6)*$B$5*E6 -> 360
A7: 8 Way | D7: dose | E7: 0.9 | P7: 1 | R7: =SUM(F7:Q7)*$B$5*E7 -> 180
A8: Pour-On | D8: dose | E8: 0.5 | P8: 1 | R8: =SUM(F8:Q8)*$B$5*E8 -> 100
A9: Implant | D9: head | E9: 1.55 | P9: 1 | R9: =SUM(F9:Q9)*$B$5*E9 -> 310
Q10: Total | R10: =SUM(R6:R9) -> 950
Q12: $/Hd | R12: =R10/B5 -> 4.75
